Cogmind - Beta 10.2 @@@ ROGUE MODE // 2020.11.17 @ 05:39:13 // Halloween2020/ForbiddenLore Player: IAMCRAIG Result: Destroyed by G-67 Veteran with Plasma Rifle Performance ------------- Evolutions (6) 3000 Regions Visited (26) 5200 Robots Destroyed (381) 1905 Value Destroyed (16530) 16530 Prototype IDs (88) 1760 Alien Tech Used (2) 400 Bonus (4629) 4629 TOTAL SCORE: 33424 Bonus ------- High Alert Combat Kills 1015 Follower Combat Kills 854 Aligned with FarCom 300 Met Data Miner 300 Met Imprinter 300 Met Zhirov 300 MAIN.C Attacked Warlord 500 Warlord Defense Kill 3420 Friendly Fire -2360 Cogmind --------- Core Integrity 0/1150 Matter 300/300 Energy 82/100 System Corruption 9% Temperature Cool (0) Movement Core (50) Location -4/Warlord Parts ------- > --- POWER (2) -------- (None) > --- PROPULSION (5) --- (None) > --- UTILITY (10) ----- (None) > --- WEAPON (3) ------- (None) > --- INVENTORY (4) ---- Advanced Cooling System Energy Well (411) Dimensional Node Initializer Kinetic Spear Peak State ------------ > --- POWER ------------ Light Antimatter Reactor Improved Quantum Reactor > --- PROPULSION ------- Spiked Medium Treads Armored Medium Treads Armored Medium Treads Biometal Heavy Treads > --- UTILITY ---------- Advanced Coolant Injector Medium Storage Unit High-capacity Storage Unit High-capacity Storage Unit Experimental Targeting Computer Advanced Target Analyzer Improved Core Analyzer Improved Armor Integrity Analyzer Layered Medium Armor Plating Force Field > --- WEAPON ----------- Mass Driver Vortex Catalyst Activator > --- INVENTORY -------- Medium Treads Medium Treads Cooling System Advanced Cooling System Energy Well Matter Compressor Energy Filter Advanced ECM Suite Makeshift Armor Plating EM Disruption Field Hacking Drone Bay Minesniffer Drone Bay Dimensional Node Initializer Transdimensional Reconstructor Wave Gun Phase Gun Matter Neutralizer Heavy Neutron Cannon Vortex Driver Coil Gun Magnetic Acceleration Cannon Magnetic Acceleration Cannon Kinetic Spear [Rating: 135] Favorites ----------- Power Micro Fission Core Engine Makeshift Power Source Power Core Micro Fission Core Reactor Heavy Antimatter Reactor Propulsion Armored Leg Treads Light Treads Leg Armored Leg Wheel Compact Wheel Hover Unit Gravmag System Flight Unit Experimental Cesium-ion Thruster Utility High-capacity Storage Unit Device Experimental Terrain Scanner Storage High-capacity Storage Unit Processor Advanced Targeting Computer Hackware System Mapper Protection Improved Light Armor Plating Weapon Light Assault Rifle Energy Gun Force Rifle Energy Cannon Cooled Plasma Cannon Ballistic Gun Light Assault Rifle Ballistic Cannon Bore Cannon Launcher Rocket Launcher Special Weapon Molecular Deconstructor Impact Weapon Power Maul Slashing Weapon Axe Piercing Weapon Makeshift Spear Special Melee Weapon Datajack Build | -11 -10 -10 -10 -9 -8 -7 -7 -7 -7 -6 -6 -6 -6 -6 -5 -5 -5 -5 -5 -5 -5 -4 -4 -4 -4 -4 ------- Run | Scr Mat Min Exi Min Mat Fac Low Low Dat Pro Fac Low Low Zio Pro Fac Was Fac Upp Upp Zhi Pro Fac Upp Upp War Slots Evolved 12 | . . . . . 4 2 . . . . 2 . . . . 2 . . . . . . 2 . . . Power 1 | . . . . . . . . . . . . . . . . . . . . . . . 1 . . . Propulsion 2 | . . . . . 1 . . . . . 1 . . . . . . . . . . . . . . . Utility 8 | . . . . . 3 1 . . . . 1 . . . . 2 . . . . . . 1 . . . Weapon 1 | . . . . . . 1 . . . . . . . . . . . . . . . . . . . . Parts Attached 502 | 7 17 15 2 3 50 14 30 18 5 28 41 14 10 4 39 2 21 20 7 11 9 11 56 18 14 36 Power 47 | 1 4 1 . . 4 1 2 . . 2 6 . 2 . 2 . 3 1 . . 1 . 5 3 4 5 Engine 16 | 1 3 1 . . 1 1 1 . . 1 4 . . . . . . 1 . . . . 1 . 1 . Core 16 | . 1 . . . 3 . 1 . . 1 2 . 2 . 1 . 1 . . . . . . 1 . 3 Reactor 15 | . . . . . . . . . . . . . . . 1 . 2 . . . 1 . 4 2 3 2 Propulsion 133 | 2 1 1 . 1 18 2 6 7 . 11 11 6 4 . 15 . 7 3 . 4 3 6 10 4 1 10 Treads 73 | 1 1 1 . . 11 2 6 6 . 10 1 . . . . . . 3 . 4 2 6 10 2 1 6 Leg 34 | . . . . . 3 . . 1 . 1 . 4 2 . 12 . 6 . . . . . . 2 . 3 Wheel 12 | 1 . . . 1 4 . . . . . 6 . . . . . . . . . . . . . . . Hover 6 | . . . . . . . . . . . 3 1 . . 1 . 1 . . . . . . . . . Flight 8 | . . . . . . . . . . . 1 1 2 . 2 . . . . . 1 . . . . 1 Utility 172 | 2 4 . 2 . 13 7 13 4 . 7 14 7 3 3 11 2 8 6 5 4 5 5 24 7 4 12 Device 85 | . . . . . 5 2 5 1 . 2 3 4 2 3 6 1 6 4 3 2 5 4 12 6 4 5 Storage 20 | 2 3 . 2 . 3 . 3 . . 1 . 3 . . . . . 1 . . . . 1 . . 1 Processor 19 | . . . . . 1 3 1 1 . . 1 . 1 . 1 . . 1 . . . . 6 1 . 2 Hackware 7 | . 1 . . . . 1 . . . . 3 . . . . 1 . . . . . . 1 . . . Protection 41 | . . . . . 4 1 4 2 . 4 7 . . . 4 . 2 . 2 2 . 1 4 . . 4 Artifact . | . . . . . . . . . . . . . . . . . . . . . . . . . . . Weapon 150 | 2 8 13 . 2 15 4 9 7 5 8 10 1 1 1 11 . 3 10 2 3 . . 17 4 5 9 Energy Gun 24 | . . 1 . 1 5 1 . . . 1 2 1 . 1 1 . . 2 . . . . 3 2 1 2 Energy Cannon 18 | . 6 2 . . . . 1 . . . 1 . . . . . . 1 1 1 . . . 1 1 3 Ballistic Gun 40 | 2 . 10 . . 7 1 3 4 1 2 3 . . . 2 . . 1 . 2 . . 1 . 1 . Ballistic Cannon 27 | . . . . . 1 1 1 1 . 2 . . 1 . 1 . 2 5 . . . . 7 1 1 3 Launcher 5 | . . . . 1 1 . 1 . . . . . . . 1 . . . . . . . . . . 1 Special Weapon 12 | . 1 . . . . . 1 1 3 2 2 . . . 1 . . . . . . . . . 1 . Impact Weapon 2 | . . . . . . . 2 . . . . . . . . . . . . . . . . . . . Slashing Weapon 10 | . . . . . 1 1 . . . . . . . . 4 . . . . . . . 4 . . . Piercing Weapon 10 | . . . . . . . . 1 . 1 2 . . . 1 . 1 1 1 . . . 2 . . . Special Melee Weapon 2 | . 1 . . . . . . . 1 . . . . . . . . . . . . . . . . . Unidentified Prototypes 29 | . . . . . 4 1 . 1 . . 3 1 . 2 . . 3 3 . . 5 . 2 . . 4 Parts Lost 114 | . . 5 . . 3 1 2 8 . 12 2 . 3 . 22 . . . 1 2 . 3 13 7 5 25 Power 12 | . . . . . 1 . . . . 2 1 . 1 . 1 . . . . . . . 1 . 1 4 Propulsion 41 | . . 1 . . . . . 5 . 6 1 . 1 . 10 . . . . 1 . 2 3 2 . 9 Utility 29 | . . . . . 1 1 . 1 . . . . . . 4 . . . 1 1 . 1 7 3 2 7 Weapon 32 | . . 4 . . 1 . 2 2 . 4 . . 1 . 7 . . . . . . . 2 2 2 5 Highest Loss Streak 16 | . . 2 . . 1 1 1 3 . 4 1 . 3 . 15 . . . 1 1 . 2 5 4 2 16 Average Slot Usage (%) 91 | . 100 99 85 85 88 91 91 94 92 96 83 92 97 100 96 97 99 90 87 90 91 92 90 89 88 88 Engine 3 | . 9 9 14 14 5 7 4 . . 3 4 . . . . . . . 5 5 1 . 1 . . . Core 2 | . 4 4 . . 3 . 2 7 7 2 1 6 5 6 . . 1 . . . . . . . . 1 Reactor 2 | . . . . . . . . . . . . . . . 5 5 3 4 . . 3 5 8 10 9 7 Treads 14 | . 14 14 14 14 21 23 23 22 23 21 8 . . . . . . 12 16 18 19 20 16 10 13 14 Leg 4 | . . . . . . . . . . . . 16 26 18 27 27 27 5 . . . . . 4 1 . Wheel 2 | . 14 14 14 14 5 . . . . . 8 4 . . . . . . . . . . . . . . Device 7 | . . . . . 8 10 7 3 7 5 2 5 6 6 10 8 10 11 12 10 10 11 7 16 19 11 Storage 13 | . 19 14 14 14 9 7 8 23 23 22 6 10 12 12 12 11 11 10 11 11 11 11 10 10 10 13 Processor 10 | . . . . . 9 9 15 15 15 15 10 6 6 6 8 11 11 11 11 11 11 11 18 22 20 19 Hackware 5 | . 8 14 . . . . . . . . 12 19 18 18 6 10 11 11 11 7 5 5 9 . . . Protection 3 | . . . . . 8 7 5 3 . 1 4 . . . 4 5 5 4 3 8 11 10 4 . . 4 Energy Gun 1 | . . . . 1 3 6 . . . 1 4 3 6 11 . . . . . . . . 1 5 4 . Energy Cannon 1 | . 16 7 . . . . . . . . . 6 4 . . . . . 1 5 5 5 . 1 4 7 Ballistic Gun 8 | . 2 19 28 24 10 15 11 9 3 10 7 6 6 . 5 5 . . . 3 11 11 5 . . 4 Ballistic Cannon 2 | . . . . . 1 . . . . 2 . . 1 6 5 5 10 10 10 3 . . 3 8 4 2 Piercing Weapon 1 | . . . . . . . . . . 3 4 2 . . . . 2 4 4 3 . . 2 . . . Naked Turns 1 | . . . . . . . . . . . . . . . . . . . . . . . . . . 1 Heaviest Build 159 | 15 73 45 86 91 159 113 113 125 116 141 114 112 93 92 115 105 110 115 111 105 111 117 131 136 133 149 Greatest Support 175 | 16 20 20 16 20 62 62 73 73 70 76 66 64 79 48 81 70 90 172 172 172 167 157 175 145 168 168 Greatest Overweight (x) 9 | . 4 2 5 5 9 1 1 5 1 6 6 1 1 1 3 1 1 1 . . 1 . . . . 5 Average Overweight (x) 1 | . 2 1 4 4 3 1 1 1 1 1 1 . 1 1 1 1 1 . . . . . . . . . Largest Inventory Capacity 40 | 8 20 12 24 24 40 24 40 28 28 40 24 32 20 20 20 20 20 20 20 20 20 20 20 20 20 24 Average Capacity 22 | 6 13 12 23 24 23 24 24 28 28 27 24 21 20 20 20 20 20 19 20 20 20 20 20 20 20 22 Most Carried 28 | 6 20 12 24 24 24 24 28 28 28 28 24 24 20 20 20 20 20 20 20 20 20 20 20 20 20 24 Average Carried 21 | 4 12 11 20 23 23 23 24 27 27 27 23 21 19 19 19 19 19 19 19 19 19 19 19 19 19 21 Final Capacity 28 | 8 12 12 24 24 24 24 28 28 28 24 24 20 20 20 20 20 20 20 20 20 20 20 20 20 20 4 Final Carried 28 | 6 12 12 24 24 24 23 28 28 28 24 24 20 20 20 20 20 20 20 20 20 20 20 20 20 20 4 Class Distribution -------------------- 33% | Hauler-Mutant 15% | Hacker-Mutant 9% | Scavenger-Mutant 8% | Hauler-Gunner 7% | Wizard-Mutant 6% | Hacker-Assassin 5% | Wizard-Gunner 3% | Mutant 3% | Hauler-Skirmisher Dominant Class ---------------- Mutant | -10/Materials Mutant | -10/Mines Hauler-Mutant | -10/Exiles Hauler-Mutant | -9/Mines Hauler-Mutant | -8/Materials Hauler-Skirmisher | -7/Factory Hauler-Mutant | -7/Lower Caves Hauler-Mutant | -7/Lower Caves Hauler-Mutant | -7/Data Miner Hauler-Mutant | -6/Proximity Caves Wizard-Mutant | -6/Factory Wizard-Mutant | -6/Lower Caves Wizard-Mutant | -6/Lower Caves Wizard-Gunner | -6/Zion Scavenger-Mutant | -5/Proximity Caves Hacker-Assassin | -5/Factory Hacker-Assassin | -5/Waste Hacker-Mutant | -5/Factory Hacker-Mutant | -5/Upper Caves Hacker-Mutant | -5/Upper Caves Hacker-Mutant | -5/Zhirov Hacker-Mutant | -4/Proximity Caves Hacker-Mutant | -4/Factory Hauler-Gunner | -4/Upper Caves Hauler-Gunner | -4/Upper Caves Hauler-Gunner | -4/Warlord Resources | -11 -10 -10 -10 -9 -8 -7 -7 -7 -7 -6 -6 -6 -6 -6 -5 -5 -5 -5 -5 -5 -5 -4 -4 -4 -4 -4 ----------- Run | Scr Mat Min Exi Min Mat Fac Low Low Dat Pro Fac Low Low Zio Pro Fac Was Fac Upp Upp Zhi Pro Fac Upp Upp War Matter Collected 14238 | 284 416 165 60 54 1202 360 675 621 30 822 887 214 146 82 995 56 322 466 1294 395 190 549 1850 1184 452 467 Remotely . | . . . . . . . . . . . . . . . . . . . . . . . . . . . Salvage Created 19719 | 73 792 336 . 108 1952 711 990 935 30 494 859 243 424 . 1518 61 1099 840 1087 661 379 1361 2246 914 822 784 Parts 883 | 1 53 28 . 9 113 35 36 49 5 29 45 17 15 . 56 5 22 32 27 30 10 44 118 38 35 31 Haulers Intercepted 13 | . 2 . . . 5 2 . . . . 2 . . . . . . 1 . . . . 1 . . . Recyclers Shooed 6 | . . . . . 4 . . . . . 1 . . . . . . . . . . . 1 . . . Parts Field Recycled . | . . . . . . . . . . . . . . . . . . . . . . . . . . . Retrieved Matter . | . . . . . . . . . . . . . . . . . . . . . . . . . . . Parts Self-Destructed 397 | . . . . . . . 21 50 . 10 . 16 17 . 39 . . . 23 29 5 28 . 27 33 99 Prevented 52 | . . . . . . . 6 . . . . . . . 12 . . . 4 . . . . 10 3 17 Kills | -11 -10 -10 -10 -9 -8 -7 -7 -7 -7 -6 -6 -6 -6 -6 -5 -5 -5 -5 -5 -5 -5 -4 -4 -4 -4 -4 ------- Run | Scr Mat Min Exi Min Mat Fac Low Low Dat Pro Fac Low Low Zio Pro Fac Was Fac Upp Upp Zhi Pro Fac Upp Upp War Combat Hostiles Destroyed 332 | . 15 16 . 4 33 12 18 19 . 11 8 4 8 . 26 3 1 12 18 16 . 17 33 17 15 26 Melee 8 | . . . . . 2 . . . . . 1 . . . 5 . . . . . . . . . . . Guns 136 | . . 4 . . 20 12 11 7 . 4 6 3 6 . 13 1 . . . . . 16 17 6 6 4 Cannons 148 | . 15 12 . . . . 5 7 . 4 . 1 2 . 5 2 1 12 18 16 . 1 15 9 9 14 AOE 27 | . . . . 4 11 . 1 . . . . . . . 2 . . . . . . . 1 . . 8 Classes Destroyed 24 | 1 5 1 . . 6 2 2 1 . . . . . . 2 . 1 . . . . 1 . . . 2 Worker 5 | . . . . . 4 . . . . . 1 . . . . . . . . . . . . . . . Builder 3 | . . . . . 1 . . . . . . . . . . . . . . . . . 2 . . . Tunneler 1 | . . . . . 1 . . . . . . . . . . . . . . . . . . . . . Hauler 13 | . 2 . . . 5 2 . . . . 2 . . . . . . 1 . . . . 1 . . . Recycler 10 | 1 . 1 . 1 4 . . . . . 1 . . . . . . . . . . . 2 . . . Minesweeper 2 | . . . . . . . 1 . . . . . . . . . . . 1 . . . . . . . Mechanic 1 | . . . . . 1 . . . . . . . . . . . . . . . . . . . . . Operator 4 | . 3 . . . 1 . . . . . . . . . . . . . . . . . . . . . Watcher 7 | . 3 . . . 4 . . . . . . . . . . . . . . . . . . . . . Swarmer 90 | . 3 13 . 4 12 . 1 4 . 4 . . 3 . 4 3 . . 6 10 . 13 . 6 3 1 Saboteur 4 | . . . . . . . . . . . . . . . 1 . . . . . . . . . . 3 Grunt 117 | . 12 1 . . 11 6 8 6 . 6 . 2 1 . 10 . . 9 7 2 . . 7 4 9 16 Brawler 11 | . . . . . . 1 1 . . . . . 2 . 2 . . . 2 1 . . 2 . . . Duelist 6 | . . . . . . . . . . . . . . . 3 . . . . 1 . . . 2 . . Protector 1 | . . . . . . . . . . . . . . . . . . . . . . . . . . 1 Sentry 34 | . . . . . 8 1 2 2 . . 4 1 1 . 2 . . 1 2 1 . . 5 2 2 . Demolisher 2 | . . 2 . . . . . . . . . . . . . . . . . . . . . . . . Specialist 3 | . . . . . . . . 3 . . . . . . . . . . . . . . . . . . Hunter 16 | . . . . . 2 2 . 2 . . . . 1 . . . . 1 . 1 . . 4 1 . 2 Programmer 32 | . . . . . . 2 1 2 . 1 4 1 . . 3 . . 2 . . . . 15 1 . . Behemoth 6 | . . . . . . . 1 . . . . . . . 1 . . . 1 1 . . . 1 1 . Compactor 1 | . . . . . . . . . . . . . . . . . 1 . . . . . . . . . Striker 3 | . . . . . . . . . . . . . . . . . . . . . . . . . . 3 Thug 4 | . . . . . . . 4 . . . . . . . . . . . . . . . . . . . Butcher 3 | . . . . . . . . . . . . . . . . . . . . . . 3 . . . . Mutant 1 | . . . . . . . . . . . . . . . . . . . . . . 1 . . . . Best Kill Streak 10 | 1 4 5 . 4 8 4 6 5 . 3 2 3 7 . 4 3 1 4 5 5 . 5 5 6 7 10 Combat Bots Only 10 | . 3 4 . 4 6 4 6 5 . 3 1 3 7 . 4 3 1 4 5 5 . 5 4 6 7 10 Max Kills in Single Turn 5 | 1 2 1 . 2 4 1 1 1 1 1 1 1 1 . 2 1 1 2 1 2 . 2 2 2 2 5 Gunslinging 1 | . . . . . . . . . . . . . . . . . . . . . . 1 . 1 . . Exploded 5 | . . . . 2 3 . 1 . . . . . . . 1 . . . . . . . 1 . . 5 Melee 1 | . . . . . 1 . . . . . 1 . . . 1 . . . . . . . . . . . Uniques/NPCs Destroyed 1 | . . . . . . . . . 1 . . . . . . . . . . . . . . . . . Data Miner (-7/Data Miner) Combat | -11 -10 -10 -10 -9 -8 -7 -7 -7 -7 -6 -6 -6 -6 -6 -5 -5 -5 -5 -5 -5 -5 -4 -4 -4 -4 -4 -------- Run | Scr Mat Min Exi Min Mat Fac Low Low Dat Pro Fac Low Low Zio Pro Fac Was Fac Upp Upp Zhi Pro Fac Upp Upp War Damage Taken 29799 | . 343 823 . 13 1644 635 1261 1926 . 1913 638 143 1077 . 3242 93 . 210 1348 1019 . 842 4189 1666 1337 5437 Core 2719 | . 64 143 . 7 133 14 84 185 . 178 89 . 134 . 267 . . 15 118 57 . 73 209 52 128 769 Absorbed by Shields 2225 | . . . . . . . . . . . . . . . 271 . . 74 449 . . . 172 550 289 420 Reduced by Siege Mode 677 | . . . . . . . . . . . . . . . . . . 8 67 58 . 4 132 233 172 3 Core Remaining (%) 56 | 100 . . . 14 75 . . . . 34 . . . . 42 . . . . . . 73 . . . . Volleys Fired 1099 | 8 79 37 . 6 124 38 61 57 19 52 38 7 21 . 78 3 8 32 55 40 20 68 115 54 36 43 Largest 3 | 2 2 2 . 2 2 3 3 3 1 2 2 2 3 . 3 2 2 3 3 2 1 3 3 3 3 3 Hottest 260 | 40 112 131 . 40 80 105 101 91 20 92 135 65 163 . 213 92 114 199 199 155 35 158 183 249 260 248 Shots Fired 1972 | 16 91 66 . 10 205 113 106 108 19 78 70 13 45 . 140 6 16 57 95 80 20 96 245 110 83 84 Gun 1069 | 16 4 34 . 8 182 113 79 63 . 23 59 6 31 . 78 3 . . . . 20 94 151 45 34 26 Cannon 796 | . 69 32 . . 11 . 22 30 . 35 5 7 14 . 55 3 16 57 95 80 . 2 94 65 49 55 Launcher 27 | . . . . 2 12 . 5 . . . . . . . 5 . . . . . . . . . . 3 Special 80 | . 18 . . . . . . 15 19 20 6 . . . 2 . . . . . . . . . . . Kinetic 1345 | 16 4 31 . 8 156 75 89 93 . 57 36 6 22 . 109 6 16 46 86 40 20 94 214 57 32 32 Thermal 395 | . 60 3 . . 37 38 12 . 18 11 18 7 23 . 14 . . . . 40 . 2 22 15 45 30 Explosive 14 | . . . . 2 12 . . . . . . . . . . . . . . . . . . . . . Electromagnetic 163 | . 27 32 . . . . 5 . . 1 10 . . . 15 . . 11 9 . . . 9 38 6 . Entropic 22 | . . . . . . . . . . . . . . . . . . . . . . . . . . 22 Robot Hit Streak 39 | 5 13 5 . 2 33 25 21 22 4 12 12 9 11 . 13 3 7 10 31 33 18 24 25 22 39 11 Robot Miss Streak 7 | 3 5 6 . 2 2 2 2 3 5 5 2 1 7 . 4 1 3 2 2 3 2 4 4 1 3 3 Penetration Max 2 | . . . . . . . . 1 . . 1 . 1 . 2 1 . 1 1 . 1 1 1 . 1 1 Secondary Targets 16 | . . . . . 3 3 1 . . 2 . . . . . . . . . . . 4 1 2 . . Max Gunslinging Chain 1 | . . . . . 1 1 1 . . 1 . . . . . . . . . . . 1 1 1 . . Shots Hit Robots 1502 | 10 68 31 . 5 163 90 89 75 10 55 58 10 34 . 122 4 30 40 86 55 18 74 181 78 61 55 Core Hits 720 | 2 27 20 . 9 85 29 38 35 3 28 19 6 15 . 65 3 10 18 36 24 11 44 80 36 36 41 Critical Hits 241 | . 3 . . . 3 5 6 10 2 4 3 1 3 . 2 . 6 27 42 11 6 28 35 21 16 7 Critical Kills 90 | . . . . . 1 . 3 4 . 1 2 1 2 . 1 . . 14 10 3 1 19 14 5 7 2 Critical Parts Destroyed 116 | . 3 . . . 2 5 3 5 1 3 1 . 1 . . . 3 12 22 7 3 9 19 8 6 3 Melee Attacks 209 | . 6 . . . 29 1 13 5 1 2 51 . . . 25 . 20 14 8 1 . . 33 . . . Impact 6 | . . . . . . . 6 . . . . . . . . . . . . . . . . . . . Slashing 72 | . . . . . 29 1 7 . . . . . . . 15 . 2 . . . . . 18 . . . Piercing 124 | . . . . . . . . 5 . 2 51 . . . 10 . 18 14 8 1 . . 15 . . . Sneak Attacks 13 | . 6 . . . 1 . 2 . 1 . . . . . . . . 1 2 . . . . . . . Combat Hostiles 2 | . . . . . . . 1 . . . . . . . . . . 1 . . . . . . . . Follow-up Attacks 2 | . . . . . . . . . . . . . . . 2 . . . . . . . . . . . Damage Inflicted 42507 | 126 1259 621 . 228 3820 1647 2271 1548 110 798 1430 317 955 . 4414 147 1424 1087 2371 1709 170 1060 4756 1940 1662 6637 Guns 16094 | 126 25 139 . 33 2539 1647 1223 861 . 199 1122 128 636 . 1664 76 . . . . 170 988 2462 875 729 452 Cannons 16916 | . 1102 433 . . 50 . 507 674 . 465 247 189 319 . 1219 71 285 1000 1670 1709 . 72 2166 1065 933 2740 Explosions 5167 | . . 44 . 195 668 . 193 . . . . . . . 541 . . . . . . . 81 . . 3445 Melee 3905 | . . . . . 544 . 348 . . . 61 . . . 990 . 1139 75 701 . . . 47 . . . Ramming 62 | . . 5 . . 19 . . 13 . 13 . . . . . . . 12 . . . . . . . . Kinetic 20932 | 126 25 98 . 33 2023 975 1397 1535 . 647 778 128 471 . 2453 147 285 829 1519 423 170 988 3982 877 399 624 Thermal 8557 | . 673 85 . . 566 672 333 . 110 121 501 189 484 . 429 . . . . 1286 . 72 624 370 1096 946 Explosive 863 | . . . . 195 668 . . . . . . . . . . . . . . . . . . . . . Electromagnetic 3121 | . 561 433 . . . . 193 . . 17 90 . . . 542 . . 171 151 . . . 103 693 167 . Impact 91 | . . . . . . . 91 . . . . . . . . . . . . . . . . . . . Slashing 1728 | . . . . . 544 . 257 . . . . . . . 726 . 201 . . . . . . . . . Piercing 2086 | . . . . . . . . . . . 61 . . . 264 . 938 75 701 . . . 47 . . . Entropic 5067 | . . . . . . . . . . . . . . . . . . . . . . . . . . 5067 Highest Corruption 14 | . . . . . 4 2 6 . . . 2 1 . . 3 . . . . . . . 14 14 14 14 Average Corruption 6 | . . . . . 4 1 4 . . . 1 1 . . 2 . . . . . . . 5 14 14 9 Corruption Purged 15 | . . . . . . . 6 . . . 4 1 . . 3 . . . . . . . 1 . . . Effects 417 | . . . . . 19 18 54 . . . 2 3 . . 5 . . . . . . . 88 114 86 28 Message Errors 79 | . . . . . 2 6 14 . . . 1 2 . . . . . . . . . . 15 16 19 4 Matter Fused 74 | . . . . . 6 . 6 . . . . . . . 2 . . . . . . . 18 28 12 2 Heat Flow Errors 51 | . . . . . 4 1 8 . . . . . . . . . . . . . . . 11 12 12 3 Energy Discharges 44 | . . . . . 3 4 6 . . . 1 . . . . . . . . . . . 8 12 9 1 Parts Rejected 1 | . . . . . . . . . . . . . . . . . . . . . . . 1 . . . Data Loss (minor) 36 | . . . . . 1 1 5 . . . . 1 . . 1 . . . . . . . 12 8 5 2 Data Loss (major) 10 | . . . . . . . 4 . . . . . . . . . . . . . . . . 4 2 . Misfires 7 | . . . . . . . 3 . . . . . . . . . . . . . . . 1 1 1 1 Alerts 4 | . . . . . . . . . . . . . . . . . . . . . . . . 3 1 . Misdirections 35 | . . . . . . . . . . . . . . . . . . . . . . . 1 16 15 3 Targeting Errors 62 | . . . . . 3 5 6 . . . . . . . 1 . . . . . . . 14 13 9 11 Weapon Failures 14 | . . . . . . 1 2 . . . . . . . 1 . . . . . . . 7 1 1 1 Overload Shots 2 | . . . . . . . . . . . 2 . . . . . . . . . . . . . . . Overflow Damage 827 | . 13 . . . 3 . 91 . . 5 11 11 . . 69 . 54 18 159 10 . 14 71 9 3 286 Projectiles 320 | . 13 . . . . . 15 . . 5 11 11 . . 28 . . 9 8 10 . 14 71 9 3 113 Explosions 188 | . . . . . 3 . . . . . . . . . 12 . . . . . . . . . . 173 Melee 319 | . . . . . . . 76 . . . . . . . 29 . 54 9 151 . . . . . . . Knockbacks 80 | . . . . . . . 2 2 . 13 . . 1 . 17 . . 7 7 2 . . 22 2 3 2 Impact . | . . . . . . . . . . . . . . . . . . . . . . . . . . . Kinetic 76 | . . . . . . . 2 2 . 13 . . 1 . 17 . . 7 7 2 . . 18 2 3 2 Secondary 4 | . . . . . . . . . . . . . . . . . . . . . . . 4 . . . Self-Inflicted Damage 261 | . . 40 . . . . . . . . . . . . 57 . . . . . . . . . . 164 Shots 6 | . . 1 . . . . . . . . . . . . 4 . . . . . . . . . . 1 Rammed 7 | . . 1 . . 2 . . 2 . 1 . . . . . . . 1 . . . . . . . . Targets Rammed 7 | . . 1 . . 2 . . 2 . 1 . . . . . . . 1 . . . . . . . . Kicked . | . . . . . . . . . . . . . . . . . . . . . . . . . . . Crushed . | . . . . . . . . . . . . . . . . . . . . . . . . . . . Highest Temperature 492 | 6 240 225 . 4 262 215 303 195 . 327 126 4 356 . 409 9 288 12 6 144 . . 492 279 194 197 Average Temperature 81 | 6 70 69 . 3 42 41 83 63 . 150 36 1 156 . 100 5 145 6 4 42 . . 115 95 83 103 Received Heat Transfer 4813 | . 117 140 . . 549 156 366 264 . 615 78 57 189 . 576 . . 57 258 147 . . 324 258 208 454 Effects 7 | . . . . . . . 1 . . . . . 3 . . . . . . . . . 3 . . . Shutdowns 2 | . . . . . . . . . . . . . . . . . . . . . . . 2 . . . Interference 4 | . . . . . . . 1 . . . . . 3 . . . . . . . . . . . . . Matter Decay 1 | . . . . . . . . . . . . . . . . . . . . . . . 1 . . . Siege Activations 27 | . . . . . . . . . . . . . . . . . . 3 2 2 . 2 6 6 4 2 Total Turns 553 | . . . . . . . . . . . . . . . . . . 20 71 45 . 45 130 165 63 14 Longest Duration 57 | . . . . . . . . . . . . . . . . . . 10 46 27 . 37 40 57 22 12 Robots Corrupted 4 | . . . . . . . 1 . . . . . . . 1 . . . . . . . . 2 . . Combat Hostiles 4 | . . . . . . . 1 . . . . . . . 1 . . . . . . . . 2 . . Parts Fried 13 | . 2 . . . . . 4 . . . . . . . 2 . . . 1 . . . . 4 . . Impact Corruptions . | . . . . . . . . . . . . . . . . . . . . . . . . . . . Robots Melted 1 | . . . . . . . . . . . 1 . . . . . . . . . . . . . . . Combat Hostiles 1 | . . . . . . . . . . . 1 . . . . . . . . . . . . . . . Parts Melted 18 | . 2 . . . 2 2 2 . . . 4 . 1 . . . . . . 1 . . 4 . . . Heat Transferred 12306 | . 1591 124 . . 1147 1258 444 . 370 407 680 250 720 . 533 . . . . 1295 . 100 716 481 1295 895 Parts Sabotaged 10 | . . . . . . . . . . . . . . . . . . 2 . . . . . . . 8 Parts Stolen 1 | . . . . . . . . . . . . . 1 . . . . . . . . . . . . . Parts Stripped . | . . . . . . . . . . . . . . . . . . . . . . . . . . . Power Chain Reactions 3 | . . 1 . . . . . . . . . . . . 1 . . . . . . . 1 . . . Missiles Intercepted . | . . . . . . . . . . . . . . . . . . . . . . . . . . . Alert | -11 -10 -10 -10 -9 -8 -7 -7 -7 -7 -6 -6 -6 -6 -6 -5 -5 -5 -5 -5 -5 -5 -4 -4 -4 -4 -4 ------- Run | Scr Mat Min Exi Min Mat Fac Low Low Dat Pro Fac Low Low Zio Pro Fac Was Fac Upp Upp Zhi Pro Fac Upp Upp War Peak Influence 859 | 5 242 378 . 105 565 363 . . . . 505 . . . . 172 60 859 . . . . 731 . . . Initial 255 | . 3 39 . . 7 255 . . . . . . . . . 60 60 . . . . . . . . . Average 205 | 1 103 197 . 8 350 230 . . . . 192 . . . . 99 26 264 . . . . 257 . . . Maximum Alert Level 3 | . 1 1 . . 2 1 . . . . 2 . . . . . . 3 . . . . 3 . . . Low Security (%) 55 | 100 94 54 . 100 15 20 . . . . 63 . . . . 100 100 65 . . . . 36 . . . Level 1 23 | . 5 45 . . 46 79 . . . . . . . . . . . 1 . . . . 32 . . . Level 2 17 | . . . . . 38 . . . . . 36 . . . . . . 12 . . . . 25 . . . Level 3 3 | . . . . . . . . . . . . . . . . . . 20 . . . . 4 . . . Level 4 . | . . . . . . . . . . . . . . . . . . . . . . . . . . . Level 5 . | . . . . . . . . . . . . . . . . . . . . . . . . . . . High Security . | . . . . . . . . . . . . . . . . . . . . . . . . . . . Max Security . | . . . . . . . . . . . . . . . . . . . . . . . . . . . Squads Dispatched 45 | . 3 . . . 5 3 . . . . 8 . 1 . 1 . . 7 . . . . 16 . 1 . Investigation 5 | . . . . . 2 1 . . . . . . . . . . . 1 . . . . . . 1 . Extermination 16 | . . . . . . 2 . . . . 4 . . . . . . 2 . . . . 8 . . . Reinforcement 9 | . 3 . . . 2 . . . . . . . . . . . . 3 . . . . 1 . . . Assault 5 | . . . . . . . . . . . 1 . 1 . 1 . . 1 . . . . 1 . . . Garrison 10 | . . . . . 1 . . . . . 3 . . . . . . . . . . . 6 . . . Intercept . | . . . . . . . . . . . . . . . . . . . . . . . . . . . Construction Impeded 2 | . . . . . . . . . . . . . . . . . . 1 . . . . 1 . . . Haulers Reinforced 2 | . . . . . . . . . . . . . . . . . . 2 . . . . . . . . Stealth | -11 -10 -10 -10 -9 -8 -7 -7 -7 -7 -6 -6 -6 -6 -6 -5 -5 -5 -5 -5 -5 -5 -4 -4 -4 -4 -4 --------- Run | Scr Mat Min Exi Min Mat Fac Low Low Dat Pro Fac Low Low Zio Pro Fac Was Fac Upp Upp Zhi Pro Fac Upp Upp War Distress Signals 15 | . 2 . . . 5 1 . . . . . . . . . . . 5 . . . . 2 . . . Communications Jammed . | . . . . . . . . . . . . . . . . . . . . . . . . . . . Distress Signals . | . . . . . . . . . . . . . . . . . . . . . . . . . . . Times Spotted 540 | . 33 38 . 2 47 15 22 25 . 18 12 3 10 . 43 4 1 31 21 23 . 19 47 16 19 91 Peak Tracking Total 20 | . 6 18 . 2 7 5 7 5 . 4 2 3 10 . 10 4 1 6 5 10 . 5 5 7 7 20 Tactical Retreats 53 | . 4 3 . . 6 1 1 5 . 3 1 . 2 . 12 . . 1 1 4 . 2 4 1 2 . Traps | -11 -10 -10 -10 -9 -8 -7 -7 -7 -7 -6 -6 -6 -6 -6 -5 -5 -5 -5 -5 -5 -5 -4 -4 -4 -4 -4 ------- Run | Scr Mat Min Exi Min Mat Fac Low Low Dat Pro Fac Low Low Zio Pro Fac Was Fac Upp Upp Zhi Pro Fac Upp Upp War Traps Triggered 3 | . . . . . . 1 . . . . . . . . . 1 . . . . . . 1 . . . Indirectly . | . . . . . . . . . . . . . . . . . . . . . . . . . . . Trap Hack Attempts 13 | . 13 . . . . . . . . . . . . . . . . . . . . . . . . . Triggered . | . . . . . . . . . . . . . . . . . . . . . . . . . . . Disarmed . | . . . . . . . . . . . . . . . . . . . . . . . . . . . Reprogrammed 1 | . 1 . . . . . . . . . . . . . . . . . . . . . . . . . Reused 1 | . 1 . . . . . . . . . . . . . . . . . . . . . . . . . Traps Extracted . | . . . . . . . . . . . . . . . . . . . . . . . . . . . Installed . | . . . . . . . . . . . . . . . . . . . . . . . . . . . Triggered 19 | . 1 . . . . . . . . . . . . . . . . 1 . . . . . . . 17 Machines | -11 -10 -10 -10 -9 -8 -7 -7 -7 -7 -6 -6 -6 -6 -6 -5 -5 -5 -5 -5 -5 -5 -4 -4 -4 -4 -4 ---------- Run | Scr Mat Min Exi Min Mat Fac Low Low Dat Pro Fac Low Low Zio Pro Fac Was Fac Upp Upp Zhi Pro Fac Upp Upp War Machines Disabled 19 | . . . . . 1 . 1 2 . . 3 . . . 1 . . 8 1 . . . 1 . 1 . Max in Single Turn 3 | . . . . . 1 . 1 1 . . 1 . . . 1 . . 3 1 . . . 1 . 1 . Garrison Access 1 | . . . . . . . . . . . . . . . . . . . . . . . 1 . . . Machines Sabotaged . | . . . . . . . . . . . . . . . . . . . . . . . . . . . Garrisons Compromised . | . . . . . . . . . . . . . . . . . . . . . . . . . . . Overloaded Fab Kills . | . . . . . . . . . . . . . . . . . . . . . . . . . . . Fab Network Shutdowns 2 | . . . . . . . . . . . 1 . . . . . . 1 . . . . . . . . Hacking | -11 -10 -10 -10 -9 -8 -7 -7 -7 -7 -6 -6 -6 -6 -6 -5 -5 -5 -5 -5 -5 -5 -4 -4 -4 -4 -4 --------- Run | Scr Mat Min Exi Min Mat Fac Low Low Dat Pro Fac Low Low Zio Pro Fac Was Fac Upp Upp Zhi Pro Fac Upp Upp War Machines Accessed 87 | . 5 . 3 . 10 5 1 2 4 . 11 1 2 1 . 2 . 13 1 1 7 1 13 1 1 2 Terminals 27 | . 3 . . . 4 3 . . . . 2 1 . . . 1 . 4 . 1 . 1 6 . 1 . Fabricators 5 | . . . . . . 1 . . . . 1 . . . . . . 2 . . . . 1 . . . Repair Stations 8 | . . . . . 2 . . . . . 2 . . . . . . 2 . . . . 2 . . . Recycling Units 12 | . 2 . . . 1 . . . . . 3 . . . . 1 . 3 . . . . 2 . . . Scanalyzers 8 | . . . . . 2 1 . . . . 2 . . . . . . 2 . . . . 1 . . . Garrison Access 3 | . . . . . 1 . . . . . 1 . . . . . . . . . . . 1 . . . Total Hacks 377 | . 16 . 25 . 54 15 1 6 30 . 49 1 4 4 . 6 . 77 1 1 20 1 54 1 8 3 Successful 295 | . 10 . 25 . 42 9 1 6 30 . 37 1 4 4 . 5 . 59 1 1 20 1 27 1 8 3 Failed 79 | . 6 . . . 11 6 . . . . 11 . . . . 1 . 17 . . . . 27 . . . Catastrophic 11 | . . . . . 1 3 . . . . . . . . . . . 1 . . . . 6 . . . Database Lockouts 3 | . . . . . 1 . . . . . 1 . . . . . . 1 . . . . . . . . Manual 105 | . 3 . 7 . 15 3 . 3 . . 22 1 . . . 2 . 36 . . . 1 12 . . . Terminals 137 | . 10 . . . 23 11 . . . . 18 1 . . . 4 . 40 . 1 . 1 20 . 8 . Fabricators 20 | . . . . . . 1 . . . . 7 . . . . . . 10 . . . . 2 . . . Repair Stations 39 | . . . . . 9 . . . . . 8 . . . . . . 7 . . . . 15 . . . Recycling Units 35 | . 6 . . . 3 . . . . . 8 . . . . 2 . 11 . . . . 5 . . . Scanalyzers 44 | . . . . . 17 3 . . . . 5 . . . . . . 9 . . . . 10 . . . Garrison Access 7 | . . . . . 2 . . . . . 3 . . . . . . . . . . . 2 . . . Terminal Hacks 156 | . 4 . 25 . 8 5 1 6 30 . 10 1 4 4 . 2 . 17 1 1 20 1 4 1 8 3 Record 65 | . . . 24 . . . . 5 11 . . 1 3 . . . . . 1 1 8 1 . . 8 2 Part Schematic 18 | . . . . . . 1 . . 8 . 1 . . 4 . . . . . . 4 . . . . . Robot Schematic 8 | . . . . . . . . . 8 . . . . . . . . . . . . . . . . . Robot Analysis 12 | . 1 . . . 1 . . . . . 5 . . . . . . 1 . . 4 . . . . . Prototype ID Bank 12 | . 1 . . . . 2 . . 3 . . . . . . 1 . . . . 4 . 1 . . . Open Door 5 | . . . . . . . 1 1 . . . . 1 . . . . . . . . . . 1 . 1 Level Access Points 1 | . . . . . . . . . . . . . . . . . . 1 . . . . . . . . Branch Access Points 4 | . . . . . . 1 . . . . . . . . . 1 . 1 . . . . 1 . . . Emergency Access Points 3 | . . . . . . 1 . . . . . . . . . . . 2 . . . . . . . . Terminal Index 1 | . . . . . . . . . . . . . . . . . . 1 . . . . . . . . Repair Station Index 2 | . . . . . . . . . . . . . . . . . . 2 . . . . . . . . Scanalyzer Index 1 | . . . . . . . . . . . . . . . . . . 1 . . . . . . . . Alert Level 6 | . . . . . 1 . . . . . . . . . . . . 4 . . . . 1 . . . Unreport Threat 2 | . . . . . . . . . . . . . . . . . . 2 . . . . . . . . Locate Traps 4 | . 1 . . . 2 . . . . . . . . . . . . . . . . . 1 . . . Dispatch Records 1 | . . . . . . . . . . . 1 . . . . . . . . . . . . . . . Security Status 1 | . . . . . 1 . . . . . . . . . . . . . . . . . . . . . Reinforcement Status 1 | . . . . . 1 . . . . . . . . . . . . . . . . . . . . . Recall Extermination 1 | . . . . . . . . . . . 1 . . . . . . . . . . . . . . . Hauler Manifests 3 | . 1 . . . . . . . . . 1 . . . . . . 1 . . . . . . . . Registered Components 2 | . . . . . 1 . . . . . 1 . . . . . . . . . . . . . . . Registered Prototypes 1 | . . . . . . . . . . . . . . . . . . 1 . . . . . . . . Zone Layout 1 | . . . . . 1 . . . . . . . . . . . . . . . . . . . . . EX-Prototype ID Bank 1 | . . . 1 . . . . . . . . . . . . . . . . . . . . . . . Fabricator Hacks 11 | . . . . . . . . . . . 5 . . . . . . 6 . . . . . . . . Load Schematic 4 | . . . . . . . . . . . 2 . . . . . . 2 . . . . . . . . Build 7 | . . . . . . . . . . . 3 . . . . . . 4 . . . . . . . . Repair Station Hacks 31 | . . . . . 8 . . . . . 7 . . . . . . 5 . . . . 11 . . . Scan Component 17 | . . . . . 5 . . . . . 3 . . . . . . 3 . . . . 6 . . . Repair 13 | . . . . . 3 . . . . . 3 . . . . . . 2 . . . . 5 . . . Refit 1 | . . . . . . . . . . . 1 . . . . . . . . . . . . . . . Recycling Unit Hacks 16 | . 3 . . . 1 . . . . . 3 . . . . 1 . 6 . . . . 2 . . . Report Inventory 12 | . 2 . . . 1 . . . . . 3 . . . . 1 . 3 . . . . 2 . . . Retrieve Components 4 | . 1 . . . . . . . . . . . . . . . . 3 . . . . . . . . Scanalyzer 37 | . . . . . 17 3 . . . . 4 . . . . . . 8 . . . . 5 . . . Insert Component 20 | . . . . . 8 2 . . . . 3 . . . . . . 4 . . . . 3 . . . Analyze 17 | . . . . . 9 1 . . . . 1 . . . . . . 4 . . . . 2 . . . Garrison Access Hacks . | . . . . . . . . . . . . . . . . . . . . . . . . . . . Unauthorized Hacks 44 | . 3 . . . 8 1 . . . . 8 . . . . 2 . 17 . . . . 5 . . . Terminals 28 | . 1 . . . 8 1 . . . . 3 . . . . 1 . 11 . . . . 3 . . . Track 4 | . . . . . 1 . . . . . . . . . . . . 3 . . . . . . . . Assimilate 5 | . . . . . 1 . . . . . . . . . . . . 3 . . . . 1 . . . Botnet 15 | . 1 . . . 4 1 . . . . 2 . . . . 1 . 4 . . . . 2 . . . Disrupt 1 | . . . . . 1 . . . . . . . . . . . . . . . . . . . . . Operators 3 | . . . . . 1 . . . . . 1 . . . . . . 1 . . . . . . . . Fabricators 2 | . . . . . . . . . . . 1 . . . . . . 1 . . . . . . . . Siphon 2 | . . . . . . . . . . . 1 . . . . . . 1 . . . . . . . . Repair Stations . | . . . . . . . . . . . . . . . . . . . . . . . . . . . Recycling Units 12 | . 2 . . . . . . . . . 2 . . . . 1 . 5 . . . . 2 . . . Monitor 2 | . . . . . . . . . . . . . . . . 1 . . . . . . 1 . . . Reject 8 | . 2 . . . . . . . . . 2 . . . . . . 3 . . . . 1 . . . Mask 2 | . . . . . . . . . . . . . . . . . . 2 . . . . . . . . Scanalyzers . | . . . . . . . . . . . . . . . . . . . . . . . . . . . Garrison Access 2 | . . . . . . . . . . . 2 . . . . . . . . . . . . . . . Reprogram 2 | . . . . . . . . . . . 2 . . . . . . . . . . . . . . . Data Cores Recovered 2 | . 1 . . . . . . . . . . . . . . . . 1 . . . . . . . . Used 1 | . 1 . . . . . . . . . . . . . . . . . . . . . . . . . Hacking Detections 53 | . 4 . . . 10 5 . . . . 11 . . . . 1 . 10 . . . . 11 . 1 . Full Trace Events 5 | . . . . . 2 1 . . . . . . . . . . . 1 . . . . . . 1 . Feedback Events . | . . . . . . . . . . . . . . . . . . . . . . . . . . . Feedback Blocked . | . . . . . . . . . . . . . . . . . . . . . . . . . . . Robot Schematics Acquired 8 | . . . . . . . . . 8 . . . . . . . . . . . . . . . . . Robots Built 6 | . . . . . . . . . . . . . . . . . . 6 . . . . . . . . Matter 816 | . . . . . . . . . . . . . . . . . . 816 . . . . . . . . Time 236 | . . . . . . . . . . . . . . . . . . 236 . . . . . . . . Total Robot Build Rating 32 | . . . . . . . . . . . . . . . . . . 32 . . . . . . . . Part Schematics Acquired 33 | . . . . . 7 2 . . 8 . 2 . . 4 . . . 4 . . 4 . 2 . . . Parts Built 2 | . . . . . . . . . . . 2 . . . . . . . . . . . . . . . Matter 451 | . . . . . . . . . . . 451 . . . . . . . . . . . . . . . Time 160 | . . . . . . . . . . . 160 . . . . . . . . . . . . . . . Total Part Build Rating 11 | . . . . . . . . . . . 11 . . . . . . . . . . . . . . . Parts Repaired 13 | . . . . . 3 . . . . . 3 . . . . . . 2 . . . . 5 . . . Time 444 | . . . . . 117 . . . . . 75 . . . . . . 105 . . . . 147 . . . Parts Recycled . | . . . . . . . . . . . . . . . . . . . . . . . . . . . Recycled Matter . | . . . . . . . . . . . . . . . . . . . . . . . . . . . Retrieved Matter . | . . . . . . . . . . . . . . . . . . . . . . . . . . . Retrieved Components 14 | . 1 . . . . . . . . . . . . . . . . 13 . . . . . . . . Parts Scanalyzed 15 | . . . . . 7 1 . . . . 1 . . . . . . 4 . . . . 2 . . . Part Schematics Acquired 15 | . . . . . 7 1 . . . . 1 . . . . . . 4 . . . . 2 . . . Parts Damaged . | . . . . . . . . . . . . . . . . . . . . . . . . . . . Bothacking | -11 -10 -10 -10 -9 -8 -7 -7 -7 -7 -6 -6 -6 -6 -6 -5 -5 -5 -5 -5 -5 -5 -4 -4 -4 -4 -4 ------------ Run | Scr Mat Min Exi Min Mat Fac Low Low Dat Pro Fac Low Low Zio Pro Fac Was Fac Upp Upp Zhi Pro Fac Upp Upp War Used RIF Installer . | . . . . . . . . . . . . . . . . . . . . . . . . . . . Robots Hacked 8 | . 4 . . . . . . . 1 . 3 . . . . . . . . . . . . . . . Non-combat 7 | . 4 . . . . . . . . . 3 . . . . . . . . . . . . . . . Combat 1 | . . . . . . . . . 1 . . . . . . . . . . . . . . . . . Robot Hacks Applied 13 | . 6 . . . . . . . 1 . 6 . . . . . . . . . . . . . . . parse_system 2 | . . . . . . . . . 1 . 1 . . . . . . . . . . . . . . . no_distress 6 | . 3 . . . . . . . . . 3 . . . . . . . . . . . . . . . find_fabricator 2 | . . . . . . . . . . . 2 . . . . . . . . . . . . . . . find_recycling 1 | . 1 . . . . . . . . . . . . . . . . . . . . . . . . . check_alert 2 | . 2 . . . . . . . . . . . . . . . . . . . . . . . . . Relay Couplers Released 3 | . . . . . . . . . . . . . . . . . . . . . . . 3 . . . Machine Destruction 3 | . . . . . . . . . . . . . . . . . . . . . . . 3 . . . Robots Rewired 9 | . . . . . . . 2 . . . . . 2 . 2 . . . 1 . . . . 2 . . Allies Hacked 2 | . . . . . . . . . . . . . . . . . . 1 . . . . . 1 . . Hacks Repelled . | . . . . . . . . . . . . . . . . . . . . . . . . . . . Allies | -11 -10 -10 -10 -9 -8 -7 -7 -7 -7 -6 -6 -6 -6 -6 -5 -5 -5 -5 -5 -5 -5 -4 -4 -4 -4 -4 -------- Run | Scr Mat Min Exi Min Mat Fac Low Low Dat Pro Fac Low Low Zio Pro Fac Was Fac Upp Upp Zhi Pro Fac Upp Upp War Total Allies 28 | . . 2 . 1 1 . 2 . 1 1 1 . 2 . 4 . . 9 1 . . . 1 2 . . Largest Group 7 | . . 2 . 1 1 . 2 . 1 1 1 . 2 2 2 . . 7 1 1 . . 1 2 . . Highest-Rated Group 274 | . . 46 . 31 31 . 50 . 59 81 29 . 62 58 60 . . 274 30 30 . . 26 94 . . Highest-Rated Ally 81 | . . 31 . 31 31 . 30 . 59 81 29 . 32 30 30 . . 54 30 30 . . 26 47 . . Total Orders 5 | . . . . . . . . . . 2 . . . . . . . 1 . . . . 1 1 . . ROAM 3 | . . . . . . . . . . 1 . . . . . . . 1 . . . . . 1 . . FOLLOW 1 | . . . . . . . . . . 1 . . . . . . . . . . . . . . . . RETURN 1 | . . . . . . . . . . . . . . . . . . . . . . . 1 . . . Ally Attacks 148 | . . 9 . . . . 18 . . 3 2 . 7 . 14 . . 76 . 10 . . . 9 . . Total Damage 4309 | . . 125 . . . . 484 . . 180 37 . 125 . 363 . . 2611 . 243 . . . 141 . . Kills 32 | . . 3 . . . . 2 . . 1 1 . . . 4 . . 18 . 2 . . . 1 . . Allies Corrupted . | . . . . . . . . . . . . . . . . . . . . . . . . . . . Allies Melted 1 | . . . . . . . . . . . . . . . 1 . . . . . . . . . . . Field Lobotomies 4 | . . . . . . . . . 1 1 . . . . 2 . . . . . . . . . . . Intel | -11 -10 -10 -10 -9 -8 -7 -7 -7 -7 -6 -6 -6 -6 -6 -5 -5 -5 -5 -5 -5 -5 -4 -4 -4 -4 -4 ------- Run | Scr Mat Min Exi Min Mat Fac Low Low Dat Pro Fac Low Low Zio Pro Fac Was Fac Upp Upp Zhi Pro Fac Upp Upp War Robot Analysis Total 12 | . 1 . . . 1 . . . . . 5 . . . . . . 1 . . 4 . . . . . Derelict Logs Recovered 20 | . . 1 . 2 . . 2 2 . 1 . 3 1 2 . . . . 1 1 . 1 . 2 1 . Drone Launches 5 | . . . . . . . . . . . . . . . . . . . . . . . 1 . . 4 Drone Recoveries 5 | . . . . . . . . . . . . . . . . . . . . . . . 1 . . 4 Exploration | -11 -10 -10 -10 -9 -8 -7 -7 -7 -7 -6 -6 -6 -6 -6 -5 -5 -5 -5 -5 -5 -5 -4 -4 -4 -4 -4 ------------- Run | Scr Mat Min Exi Min Mat Fac Low Low Dat Pro Fac Low Low Zio Pro Fac Was Fac Upp Upp Zhi Pro Fac Upp Upp War Turns Passed 53846 | 97 1289 1410 2864 1814 2700 1592 2461 5790 286 3821 2970 2671 1171 1514 3884 203 917 2343 1997 1746 532 2008 3282 2196 1469 819 Spaces Moved 27227 | 59 772 966 1910 962 1211 726 1196 2432 120 1051 1525 1499 725 995 2055 111 537 1179 1118 958 288 1036 1447 1189 785 375 Core 4 | 4 . . . . . . . . . . . . . . . . . . . . . . . . . . Treads 14616 | . 59 136 . 1 555 726 1196 2432 120 1051 283 . . . . . . 864 1118 958 288 1036 1447 1189 785 372 Legs 5809 | . . . . . . . . . . . . 1069 725 995 2055 111 537 315 . . . . . . . 2 Wheels 6797 | 55 713 830 1910 961 656 . . . . . 1242 430 . . . . . . . . . . . . . . Hover . | . . . . . . . . . . . . . . . . . . . . . . . . . . . Flight 1 | . . . . . . . . . . . . . . . . . . . . . . . . . . 1 Fastest Speed 50 | 50 100 120 120 150 150 178 183 178 178 178 110 110 150 150 150 150 150 150 152 152 160 160 155 152 161 161 Average Speed 156 | 96 127 131 148 150 164 179 183 179 178 185 131 138 150 150 152 150 150 151 155 158 160 161 160 156 161 166 Slowest Speed 440 | 100 220 200 150 240 240 183 183 260 178 290 200 150 150 150 210 150 150 158 158 162 180 162 166 162 162 440 Overloaded Moves . | . . . . . . . . . . . . . . . . . . . . . . . . . . . Propulsion Burnouts . | . . . . . . . . . . . . . . . . . . . . . . . . . . . Robots Hopped . | . . . . . . . . . . . . . . . . . . . . . . . . . . . Cave-ins Triggered . | . . . . . . . . . . . . . . . . . . . . . . . . . . . Exploration Rate (%) 70 | 5 79 99 93 97 68 15 90 99 75 87 29 98 74 85 99 3 95 25 95 93 62 92 35 96 73 43 Regions Visited 26 Branch Regions 18 Pre-discovered Areas 12 | . . 1 1 1 . . 1 . 1 . . . 1 1 . . . . 1 . 3 . . . 1 . Known Exits Taken 6 | . . . . . . 1 1 . . . 1 . . . . . . 1 . . . 1 1 . . . Unknown Exits Taken 18 | 1 1 1 1 1 1 . . 1 1 1 . 1 1 1 1 . . . 1 1 1 . . 1 1 . Scrap Searched 54 | . . 1 . 2 . . 4 5 . 3 . 11 2 4 5 . . . 4 3 . 2 . 2 6 . Spaces Dug 141 | . . . . . 28 1 4 2 . 1 27 1 . . . . . 43 . 1 . . 31 . . 2 Terrain Destroyed 488 | . . 4 . 13 95 1 5 12 . 13 28 2 2 . 38 2 2 54 8 21 . 6 64 5 7 106 Melee 90 | . . . . . 14 1 4 1 . 1 27 . . . . . . 10 . 1 . . 31 . . . Projectile 189 | . . . . . 8 . 1 11 . 12 1 2 2 . 31 2 2 11 8 20 . 6 33 5 7 27 AOE 209 | . . 4 . 13 73 . . . . . . . . . 7 . . 33 . . . . . . . 79 Terrain Rammed . | . . . . . . . . . . . . . . . . . . . . . . . . . . . Walls Destroyed . | . . . . . . . . . . . . . . . . . . . . . . . . . . . Machines Disabled . | . . . . . . . . . . . . . . . . . . . . . . . . . . . Actions | -11 -10 -10 -10 -9 -8 -7 -7 -7 -7 -6 -6 -6 -6 -6 -5 -5 -5 -5 -5 -5 -5 -4 -4 -4 -4 -4 --------- Run | Scr Mat Min Exi Min Mat Fac Low Low Dat Pro Fac Low Low Zio Pro Fac Was Fac Upp Upp Zhi Pro Fac Upp Upp War Total 36597 | 79 977 1048 1938 1327 1739 969 1390 3747 155 2838 2380 2090 771 1019 2637 143 626 1676 1269 1105 343 1287 2152 1459 932 501 Wait 6600 | . 33 19 . 347 221 161 22 1204 . 1650 673 523 3 9 382 25 1 374 60 80 . 147 429 150 77 10 Move 27202 | 58 771 965 1909 961 1210 725 1195 2431 119 1050 1524 1498 724 994 2054 111 536 1178 1117 957 287 1035 1446 1188 784 375 Hop . | . . . . . . . . . . . . . . . . . . . . . . . . . . . Pick Up 412 | 6 25 4 22 4 39 12 27 15 5 29 16 31 5 6 25 2 10 23 7 8 8 13 33 18 9 10 Fast Attach 184 | 7 5 3 . 1 18 4 7 4 1 7 23 4 1 . 16 . 13 11 3 2 9 1 18 3 6 17 Attach 133 | . . 5 1 . 9 4 6 9 1 11 2 7 4 2 14 2 2 1 1 6 . 5 13 9 6 13 Detach 37 | . 1 . 1 . 5 1 2 2 . 2 2 2 1 . 4 . 1 1 . 1 1 . 4 3 1 2 Swap 187 | . 12 7 1 2 23 6 17 5 3 10 16 4 5 2 9 . 6 8 3 3 1 5 25 6 2 6 Drop 463 | . 32 7 4 6 59 15 29 12 6 24 35 14 2 6 24 . 29 32 9 7 17 13 36 14 11 20 Fire 1099 | 8 79 37 . 6 124 38 61 57 19 52 38 7 21 . 78 3 8 32 55 40 20 68 115 54 36 43 Melee 207 | . 6 . . . 29 1 13 5 1 2 51 . . . 23 . 20 14 8 1 . . 33 . . . Ram . | . . . . . . . . . . . . . . . . . . . . . . . . . . . Kick . | . . . . . . . . . . . . . . . . . . . . . . . . . . . Crush 7 | . . 1 . . 2 . . 2 . 1 . . . . . . . 1 . . . . . . . . Escape Stasis 2 | . . . . . . 2 . . . . . . . . . . . . . . . . . . . . Rewire 51 | . . . . . . . 11 1 . . . . 5 . 8 . . 1 6 . . . . 14 . 5 Trap 13 | . 13 . . . . . . . . . . . . . . . . . . . . . . . . . Miscellaneous . | . . . . . . . . . . . . . . . . . . . . . . . . . . . Route ------- -11/Scrapyard -10/Materials (discovered 4 exits: [*Mat x2] / [*Min x2]) -10/Mines (discovered 3 exits: [*Mat x2] / *Exi) -10/Exiles (discovered 2 exits: [*Min x2]) -9/Mines (discovered 2 exits: *Mat x2) -8/Materials (discovered 2 exits: *Fac x2) -7/Factory (discovered 3 exits: *Fac / *Low x2) -7/Lower Caves -7/Lower Caves (discovered 2 exits: *Fac / *Dat) -7/Data Miner -6/Proximity Caves -6/Factory (discovered 3 exits: *Fac / *Low x2) -6/Lower Caves -6/Lower Caves -6/Zion -5/Proximity Caves -5/Factory (discovered 2 exits: Upp x2) -5/Waste -5/Factory (discovered 6 exits: *Fac x4 / *Upp x2) -5/Upper Caves -5/Upper Caves (discovered 2 exits: *Fac / *Zhi) -5/Zhirov -4/Proximity Caves -4/Factory (discovered 5 exits: *Upp x2 / Ext x2 / Arm) -4/Upper Caves -4/Upper Caves (discovered 2 exits: [*Res] / *War) -4/Warlord (discovered 1 exit: [*Pro]) History --------- Turn | Location | Event 11 | -11/Scrapyard | Discovered new exit (range 16) 98 | -11/Scrapyard | Entered Materials 454 | -10/Materials | Discovered new exit (range 16) 478 | -10/Materials | Build established: Hauler-Mutant 622 | -10/Materials | Discovered new exit (range 11) 781 | -10/Materials | Discovered new exit (range 14) 851 | -10/Materials | Build established: Mutant 1047 | -10/Materials | Discovered new exit (range 15) 1387 | -10/Materials | Entered Mines 1709 | -10/Mines | Assembled infested the area 1776 | -10/Mines | Core integrity fell below 50% 1939 | -10/Mines | Discovered new exit (range 11) 2051 | -10/Mines | Deemed a non-threat by the Exiles lab entrance 2051 | -10/Mines | Discovered new exit (range 5) 2096 | -10/Mines | Core integrity fell below 20% 2319 | -10/Mines | Learned location of Storage (-9) 2381 | -10/Mines | Build established: Scavenger-Mutant 2451 | -10/Mines | Discovered new exit (range 14) 2797 | -10/Mines | Entered Exiles 2825 | -10/Exiles | Met 8R-AWN 2848 | -10/Exiles | Met EX-HEX 2999 | -10/Exiles | Met EX-BIN 3018 | -10/Exiles | Met EX-DEC 3024 | -10/Exiles | Learned location of Zion (-6) 3100 | -10/Exiles | Visited The Gauntlet 3195 | -10/Exiles | Build established: Hauler-Mutant 3437 | -10/Exiles | Aligned with FarCom system 3438 | -10/Exiles | Given EX-Vault access code 3476 | -10/Exiles | Opened EX-Vault 3488 | -10/Exiles | Found Field Lobotomy Kit 3522 | -10/Exiles | Warned to stay clear of 0b10 Research branches 4361 | -10/Exiles | Discovered new exit (range 10) 4760 | -10/Exiles | Discovered new exit (range 14) 5661 | -10/Exiles | Left Exiles lab with Field Lobotomy Kit 5661 | -10/Exiles | Entered Mines 5669 | -9/Mines | Met a Derelict bent on vengeance 5738 | -9/Mines | Discovered new exit (range 14) 5785 | -9/Mines | Discovered new exit (range 8) 7258 | -9/Mines | Received a Mining Laser from a helpful Derelict 7475 | -9/Mines | Entered Materials 7475 | -8/Materials | Accompanied by 1 ally 7475 | -8/Materials | Evolved 4 slots: Propulsion x1, Utility x3 8539 | -8/Materials | Central database locked down 8962 | -8/Materials | Discovered new exit (range 11) 9163 | -8/Materials | Garrison activated, responded to threat 9804 | -8/Materials | Repaired Broken Arm. Treads 9845 | -8/Materials | Repaired Adv. Treads 9882 | -8/Materials | Repaired Lgt. Treads 10023 | -8/Materials | Discovered new exit (range 15) 10175 | -8/Materials | Entered Factory 10175 | -7/Factory | Evolved 2 slots: Utility x1, Weapon x1 10176 | -7/Factory | Identified exit to Lower Caves 10939 | -7/Factory | Build established: Hauler-Skirmisher 11199 | -7/Factory | Discovered new exit (range 16) 11767 | -7/Factory | Entered Lower Caves 11826 | -7/Lower Caves | Ambushed by wild Derelicts 11933 | -7/Lower Caves | Build established: Hauler-Mutant 12216 | -7/Lower Caves | Attracted the attention of an 0b10 outpost 12697 | -7/Lower Caves | Attracted the attention of an 0b10 checkpoint 12954 | -7/Lower Caves | Attacked by a delusional Derelict stockpiling parts 13028 | -7/Lower Caves | Build established: Scavenger-Mutant 13264 | -7/Lower Caves | Spotted B-75 Beast 13296 | -7/Lower Caves | Destroyed B-75 Beast 13465 | -7/Lower Caves | Discovered new exit (range 5) 13521 | -7/Lower Caves | Identified exit to Lower Caves 13916 | -7/Lower Caves | Build established: Hauler-Mutant 14228 | -7/Lower Caves | Entered another Lower Caves area 14229 | -7/Lower Caves | Encountered a Warlord checkpoint 14474 | -7/Lower Caves | Learned Factory trap positions 14474 | -7/Lower Caves | Learned Factory stockpile data 14474 | -7/Lower Caves | Learned Armory stockpile data 14474 | -7/Lower Caves | Learned Armory terminal intel 14739 | -7/Lower Caves | Learned Factory garrison access intel 14863 | -7/Lower Caves | Lost 3 parts (2n1u) 14914 | -7/Lower Caves | Discovered new exit (range 11) 15015 | -7/Lower Caves | Learned Factory interactive machine intel 15159 | -7/Lower Caves | Attracted the attention of an 0b10 checkpoint 15701 | -7/Lower Caves | Build established: Hauler-Gunner 15903 | -7/Lower Caves | Acquired the password to a Derelict Tinkerer's latest research 15922 | -7/Lower Caves | Found Prototype Special Weapon 15922 | -7/Lower Caves | Identified Molecular Deconstructor 16102 | -7/Lower Caves | Caught by Unaware searching for contraband prototypes 16365 | -7/Lower Caves | Discovered new exit (range 10) 17179 | -7/Lower Caves | Build established: Hauler-Mutant 20018 | -7/Lower Caves | Entered Data Miner 20018 | -7/Data Miner | Discovered new exit (range 6) 20052 | -7/Data Miner | Met Data Miner 20107 | -7/Data Miner | Learned location of Section 7 (-2) 20107 | -7/Data Miner | Acquired the access code to Warlord's prototype stash 20137 | -7/Data Miner | Received God Mode back door access code from Data Miner 20157 | -7/Data Miner | Assimilated Data Miner with FLK Orb 20226 | -7/Data Miner | Destroyed Data Miner 20240 | -7/Data Miner | Found Ghost Barrier 20243 | -7/Data Miner | Found System Mapper 20250 | -7/Data Miner | Found Quantum Router 20253 | -7/Data Miner | Found Deep Network Scanner 20304 | -7/Data Miner | Entered Proximity Caves 20528 | -6/Proximity Caves | Build established: Hauler-Skirmisher 21240 | -6/Proximity Caves | Lost 3 parts (1p1n1w) 21366 | -6/Proximity Caves | Build established: Hauler-Mutant 21398 | -6/Proximity Caves | Spotted B-75 Beast 21456 | -6/Proximity Caves | Assimilated B-75 Beast with FLK Orb 21613 | -6/Proximity Caves | Core integrity fell below 50% 21825 | -6/Proximity Caves | Lost 4 parts (1p2n1w) 23353 | -6/Proximity Caves | Discovered new exit (range 15) 24125 | -6/Proximity Caves | Entered Factory 24125 | -6/Factory | Evolved 2 slots: Propulsion x1, Utility x1 24126 | -6/Factory | Identified exit to Lower Caves 24127 | -6/Factory | Loaded intel: 79 trap records 24129 | -6/Factory | Loaded intel: 45 interactive machine locations 24130 | -6/Factory | Loaded intel: 3 garrison access locations 24423 | -6/Factory | Build established: Hauler-Assassin 24916 | -6/Factory | Discovered exit to Lower Caves (range 12) 25054 | -6/Factory | Build established: Hacker-Assassin 25451 | -6/Factory | Garrison activated, responded to threat 25551 | -6/Factory | Build established: Hacker-Mutant 25555 | -6/Factory | Discovered new exit (range 8) 25923 | -6/Factory | Fabricated Exp. Terrain Scanner (x1) 26007 | -6/Factory | Local fabrication network quarantined 26010 | -6/Factory | Fabricated Exp. Cesium-ion Thruster (x1) 26138 | -6/Factory | Central database locked down 26155 | -6/Factory | Build established: Wizard-Mutant 26466 | -6/Factory | Repaired Force Rifle 26492 | -6/Factory | Repaired Fission Core 26755 | -6/Factory | Repaired Coil Gun 26925 | -6/Factory | First assault squad dispatched 27095 | -6/Factory | Entered Lower Caves 27874 | -6/Lower Caves | Attracted the attention of an 0b10 checkpoint 27905 | -6/Lower Caves | Learned 4 Factory zone layouts 28319 | -6/Lower Caves | Build established: Wizard-Gunner 28325 | -6/Lower Caves | Learned Factory garrison access intel 28385 | -6/Lower Caves | Learned Factory stockpile data 28910 | -6/Lower Caves | Found Alien Artifact 28910 | -6/Lower Caves | Identified Core Expander 28910 | -6/Lower Caves | Installed Core Expander, added new Propulsion slot 29188 | -6/Lower Caves | Build established: Wizard-Mutant 29281 | -6/Lower Caves | Discovered new exit (range 8) 29766 | -6/Lower Caves | Entered another Lower Caves area 29930 | -6/Lower Caves | Learned Research emergency access door positions 29930 | -6/Lower Caves | Learned Research garrison access intel 30545 | -6/Lower Caves | Attracted the attention of an 0b10 outpost 30633 | -6/Lower Caves | Lost 3 parts (1p1n1w) 30638 | -6/Lower Caves | Destroyed 7 combat bots 30751 | -6/Lower Caves | Discovered new exit (range 5) 30787 | -6/Lower Caves | Arm. Leg stolen by Master Thief 30861 | -6/Lower Caves | Build established: Wizard-Gunner 30937 | -6/Lower Caves | Entered Zion 30937 | -6/Zion | Accompanied by 2 allies 30973 | -6/Zion | Given the Hacking Drone Bay 30975 | -6/Zion | Found Prototype Device 31049 | -6/Zion | Discovered new exit (range 12) 31527 | -6/Zion | Found Prototype Device 31528 | -6/Zion | Identified Mobile Refinery Mk. CCLXVII 31536 | -6/Zion | Identified Hacking Drone Bay 31850 | -6/Zion | Given A8's code to call for help 31940 | -6/Zion | Rebuked by Imprinter 32066 | -6/Zion | Learned location of 1 exit from Lower Caves 32081 | -6/Zion | Learned location of Warlord (-4) 32451 | -6/Zion | Entered Proximity Caves 32451 | -5/Proximity Caves | Accompanied by 2 allies 32659 | -5/Proximity Caves | Attracted the attention of an 0b10 outpost 32718 | -5/Proximity Caves | Assimilated L-41 Fighter with FLK Orb 32724 | -5/Proximity Caves | Assimilated B-60 Warrior with FLK Orb 32809 | -5/Proximity Caves | Core integrity fell below 50% 32831 | -5/Proximity Caves | Lost 15 parts (1p6n2u6w) 33033 | -5/Proximity Caves | Build established: Scavenger-Mutant 33212 | -5/Proximity Caves | Spotted B-75 Beast 33298 | -5/Proximity Caves | Destroyed B-75 Beast 34194 | -5/Proximity Caves | Attracted the attention of an 0b10 checkpoint 34230 | -5/Proximity Caves | Lost 3 parts (2n1u) 34234 | -5/Proximity Caves | Discovered new exit (range 13) 36335 | -5/Proximity Caves | Entered Factory 36335 | -5/Factory | Evolved 2 slots: Utility x2 36336 | -5/Factory | Identified exit to Upper Caves 36338 | -5/Factory | Loaded intel: 4 garrison access locations 36538 | -5/Factory | Sucked down chute 36538 | -5/Factory | Entered Waste 36538 | -5/Waste | The area was eerily silent 36659 | -5/Waste | Build established: Hacker-Assassin 37167 | -5/Waste | Discovered new exit (range 23) 37190 | -5/Waste | A Compactor rumbled back to life 37191 | -5/Waste | Spotted C-40 Crusher 37215 | -5/Waste | Destroyed C-40 Crusher 37284 | -5/Waste | Found Prototype Device 37284 | -5/Waste | Identified Exp. Phase Shifter 37455 | -5/Waste | Entered Factory 37696 | -5/Factory | Repaired Broken Biometal Heavy Treads 37728 | -5/Factory | Central database locked down 37891 | -5/Factory | Identified exit to Factory 38006 | -5/Factory | Fabricated P-70 Sage (x2) 38581 | -5/Factory | Build established: Hacker-Mutant 38791 | -5/Factory | Fabricated H-66 Slayer (x2) 38869 | -5/Factory | Fabricated H-66 Slayer (x2) 39024 | -5/Factory | Sage 6a assimilated hostile G-50 Soldier 39041 | -5/Factory | Local fabrication network quarantined 39555 | -5/Factory | First assault squad dispatched 39732 | -5/Factory | Repaired Centrium Light Armor Plating 39798 | -5/Factory | Entered Upper Caves 39850 | -5/Upper Caves | Attracted the attention of an 0b10 checkpoint 40130 | -5/Upper Caves | Found Alien Artifact 40185 | -5/Upper Caves | Discovered new exit (range 20) 41119 | -5/Upper Caves | Attracted the attention of an 0b10 outpost 41150 | -5/Upper Caves | Spotted B-75 Beast 41200 | -5/Upper Caves | Destroyed B-75 Beast 41795 | -5/Upper Caves | Entered another Upper Caves area 41795 | -5/Upper Caves | Accompanied by 1 ally 41846 | -5/Upper Caves | Discovered exit to Factory (range 18) 41901 | -5/Upper Caves | Attracted the attention of an 0b10 checkpoint 41949 | -5/Upper Caves | Learned Factory interactive machine intel 42269 | -5/Upper Caves | Spotted B-75 Beast 42298 | -5/Upper Caves | Destroyed B-75 Beast 43268 | -5/Upper Caves | Build established: Hacker-Skirmisher 43348 | -5/Upper Caves | Discovered new exit (range 26) 43541 | -5/Upper Caves | Entered Zhirov 43541 | -5/Zhirov | Discovered new exit (range 3) 43570 | -5/Zhirov | Met Zhirov 43615 | -5/Zhirov | Learned location of Quarantine (-2) 43615 | -5/Zhirov | Learned location of Testing (-3) 43615 | -5/Zhirov | Learned location of Command (-1) 43623 | -5/Zhirov | Zhirov requested help retrieving the SGEMP Prototype 43657 | -5/Zhirov | Found Alien Artifact 43657 | -5/Zhirov | Identified Integrated Dissipator 43657 | -5/Zhirov | Installed Integrated Dissipator, increased core heat dissipation (+20) 43914 | -5/Zhirov | Found Alien Artifact 44066 | -5/Zhirov | Build established: Hacker-Mutant 44073 | -5/Zhirov | Entered Proximity Caves 44616 | -4/Proximity Caves | Learned Research emergency access door positions 45098 | -4/Proximity Caves | Build established: Hacker-Skirmisher 45347 | -4/Proximity Caves | Discovered exit to Factory (range 29) 45425 | -4/Proximity Caves | Attacked by a faux Warlord 45477 | -4/Proximity Caves | Build established: Hacker-Mutant 46081 | -4/Proximity Caves | Entered Factory 46081 | -4/Factory | Evolved 2 slots: Power x1, Utility x1 46082 | -4/Factory | Identified exit to Extension 46082 | -4/Factory | Identified exit to Armory 46083 | -4/Factory | Loaded intel: 48 interactive machine locations 46235 | -4/Factory | Discovered exit to Extension (range 18) 46408 | -4/Factory | Garrison activated, responded to threat 46472 | -4/Factory | Build established: Hacker-Assassin 46684 | -4/Factory | Identified Dimensional Node Initializer 46734 | -4/Factory | Identified exit to Upper Caves 46885 | -4/Factory | Build established: Hacker-Mutant 47075 | -4/Factory | Repaired Biometal Heavy Treads 47102 | -4/Factory | Garrison activated, responded to threat 47183 | -4/Factory | Repaired Hvy. Treads 47609 | -4/Factory | Build established: Hacker-Assassin 48034 | -4/Factory | Found Prototype Device 48034 | -4/Factory | Identified EM Disruption Field 48718 | -4/Factory | Repaired Hvy. Antimatter Reactor 48755 | -4/Factory | Repaired Hvy. Siege Treads 48781 | -4/Factory | Repaired Lyr. Medium Armor Plating 48840 | -4/Factory | Build established: Hacker-Mutant 49096 | -4/Factory | Spotted B-86 Titan 49097 | -4/Factory | System corruption reached 10% 49169 | -4/Factory | Lost 5 parts (1p3u1w) 49363 | -4/Factory | Entered Upper Caves 49449 | -4/Upper Caves | Encountered a Warlord checkpoint 49539 | -4/Upper Caves | Build established: Scavenger-Mutant 49606 | -4/Upper Caves | Attracted the attention of an 0b10 outpost 49664 | -4/Upper Caves | Lost 4 parts (1n2u1w) 49969 | -4/Upper Caves | Learned Research machine intel 50219 | -4/Upper Caves | Build established: Hauler-Gunner 50416 | -4/Upper Caves | Spotted B-86 Titan 50972 | -4/Upper Caves | Destroyed B-86 Titan 51162 | -4/Upper Caves | Attracted the attention of an 0b10 checkpoint 51192 | -4/Upper Caves | Discovered new exit (range 5) 51559 | -4/Upper Caves | Entered another Upper Caves area 51570 | -4/Upper Caves | Discovered new exit (range 14) 51628 | -4/Upper Caves | Attracted the attention of an 0b10 base 51680 | -4/Upper Caves | Destroyed 7 combat bots 51690 | -4/Upper Caves | Learned Factory trap positions 51690 | -4/Upper Caves | Learned Research emergency access door positions 52237 | -4/Upper Caves | Encountered a Warlord checkpoint 52295 | -4/Upper Caves | Spotted B-86 Titan 52567 | -4/Upper Caves | Attracted the attention of an 0b10 checkpoint 52683 | -4/Upper Caves | Build established: Hauler-Mutant 52809 | -4/Upper Caves | Destroyed B-86 Titan 52822 | -4/Upper Caves | Discovered new exit (range 16) 52843 | -4/Upper Caves | Learned Research terminal intel 53028 | -4/Upper Caves | Entered Warlord 53068 | -4/Warlord | Build established: Hauler-Gunner 53085 | -4/Warlord | System corruption cleaned by Quarantine Array 53204 | -4/Warlord | Visited the Vortex Lab 53208 | -4/Warlord | Warlord's base attacked by MAIN.C 53221 | -4/Warlord | Found Prototype Energy Cannon 53221 | -4/Warlord | Identified Vortex Driver 53224 | -4/Warlord | Found Vortex Driver 53232 | -4/Warlord | Found Prototype Launcher 53359 | -4/Warlord | Found Prototype Device 53359 | -4/Warlord | Identified Minesniffer Drone Bay 53418 | -4/Warlord | Warlord forces counterattacked 53446 | -4/Warlord | P-70 Sage assimilated allied Y1-882(Y) 53473 | -4/Warlord | Lost 3 parts (1p2n) 53509 | -4/Warlord | Spotted Executioner 53509 | -4/Warlord | Spotted Executioner 53612 | -4/Warlord | Spotted Striker 53612 | -4/Warlord | Spotted Striker 53635 | -4/Warlord | Destroyed Striker 53662 | -4/Warlord | Destroyed 7 combat bots 53664 | -4/Warlord | Found Exp. Targeting Computer 53674 | -4/Warlord | Discovered new exit (range 14) 53717 | -4/Warlord | Spotted Striker 53731 | -4/Warlord | Spotted Striker 53731 | -4/Warlord | Spotted Striker 53732 | -4/Warlord | Identified Vortex Catalyst Activator 53740 | -4/Warlord | Destroyed Striker 53755 | -4/Warlord | Core integrity fell below 50% 53761 | -4/Warlord | Destroyed 10 combat bots 53763 | -4/Warlord | Destroyed Striker 53816 | -4/Warlord | Lost 16 parts (3p5n5u3w) 53833 | -4/Warlord | Spotted Striker 53834 | -4/Warlord | Spotted Striker 53843 | -4/Warlord | Core integrity fell below 20% 53847 | -4/Warlord | Destroyed by G-67 Veteran with Plasma Rifle Last Messages --------------- 53838_ Hrd. Heavy Armor Plating destroyed. 53839_ Acquired 20 matter. 53839_ Flexi-carbon Leg destroyed. 53842_ Acquired 6 matter. 53842_ Mak. Armor Plating blown off. 53842_ Magnetic Acceleration Cannon blown off. 53842_ Imp. Armor Integrity Analyzer blown off. 53842_ Minesniffer Drone Bay blown off. 53842_ E-15 Imp destroyed. 53843_ Cesium-ion Thruster fries itself beyond repair. 53843_ Unknown Engine fries itself beyond repair. 53844_ Cesium-ion Thruster blown off. 53844_ Adv. Target Analyzer blown off. 53844_ Imp. Core Analyzer blown off. 53844_ E-15 Imp destroyed. 53845_ Propulsion Shielding fries itself beyond repair. 53846_ Segregator fries itself beyond repair. 53846_ Imp. Targeting Computer destroyed. 53846_ Dropped Hcp. Storage Unit. 53847_ Propulsion Shielding fries itself beyond repair. Map ----- +----------------------------------------------------+ | ?????????????????????????????????????????????????? | | ?????????????????????????????????????????????????? | | ?????????????????????????????????????????????????? | | ???????????????????????????????????????????#?????? | | ??????????????????????????????????????????? ##??? | | ????????????????????????????????????????? ##? | | ????????????????????????????????????????? < #? | | ??????????????????????????? ????????????? ?? | | ??????????????????????????? ???????????? ??? | | ???????????????????????????? ??????????? #??? | | ?????????????????????????????? ????????? ???? | | ??????????????????????????????# ???????? #???? | | ???? ??????????????????????# ?????### ###??? | | ???? ??????????????????????# ##### # ###? | | ???# #?????????????????????# #? | | ???# #??????????????????????# # ## ## | | ???? ????????????????????????# # # | | ????# #??????""#????????????????# % # # | | ????# #?????#""#????????????????## * ## | | ????# #?????#""#?????????????????# # | | ????# #?????#""#?????????????###### =!! | | ?#### #######""#####??????### ###%%!%[ | | ?# # "" ########;;;; #!%! != %% | | ?# # "" [!!%! ; g ##%%!*% [%*# | | ## # !% *%!]!!=%!%% ; g ;%=%%*!%%! | | +% ! %%%%%!=@!=[ % gg ;%%!==*%%%% | | +%%! %%!%!%KeK% %/ gg %%%%%=!%*%!= | | +[% %* !]!% %gggggi %##%=!%!# | | + %%!!]% = % %#=]### | | # %; " % ## %]##? | | # # "" "" " " ###%![#? | | # # "" "######### #= #? | | #### # #####""#####???????# [ ## | | ###???#""#???????????# # | | #????#""#???????????## # ## | | ##????#""#????????????? # % # | | #??????""??????????????##; # ## [ # | | ##/######???????????????????????? ### # ## | | #????????????????????????? #???# ###? | | #????????????????????????? ???### ##?? | | ! #?????????????????????????# ##???## #?? | | = ! #????????????????????????? #???## #?? | | #????????????????????????? ? ????# #?? | | *** #?????????????????????????????????# #?? | | #?????????????????????????????????# #?? | | #?????????????????????????????????# #?? | | #?????????????????????????????????## ##?? | | ########?????????????????????????????????? #??? | | ?????????????????????????????????????????? ##??? | | ?????????????????????????????????????????#####???? | +----------------------------------------------------+ Best States ------------- Heat Dissipation 132 Coolant Potential 100 Energy Generation 51 Energy Capacity 740 Matter Stores 300 Matter Capacity 300 Sight Range 16 Terrain Scan Range 30 Terrain Scan Density 210 Power Amplification 30 Armor Coverage 700 Resistance: KI 20 Resistance: TH 30 Resistance: EM 50 Utility Shielding 66 Weapon Shielding 66 Weapon Cycling 20 Evasion (%) 40 Targeting Accuracy 12 Target Analysis 8 Core Analysis 8 Armor Integrity Analysis 50 Recoil Reduction 5 Energy Filtering 30 Offensive Hacking 45 Defensive Hacking 25 Item Schematics ----------------- Humpback | -8/Materials | Scanalyzed Hcp. Storage Unit | -8/Materials | Scanalyzed Adv. Treads | -8/Materials | Scanalyzed Arm. Treads | -8/Materials | Scanalyzed Enh. Autogun | -8/Materials | Scanalyzed Imp. Datajack | -8/Materials | Scanalyzed Hacking Suite | -8/Materials | Scanalyzed Adv. Targeting Computer | -7/Factory | Scanalyzed Hyp. Gauss Cannon | -7/Factory | Hacked Combat Drone Bay | -7/Data Miner | Free Lgt. Regenerative Plating | -7/Data Miner | Free Cmb. Gravmag System | -7/Data Miner | Free Exp. Cesium-ion Thruster | -7/Data Miner | Free Exp. Sensor Array | -7/Data Miner | Free Exp. Terrain Scanner | -7/Data Miner | Free Cloaking Device | -7/Data Miner | Free Mni. Smartbomb Launcher | -7/Data Miner | Free Imp. Cesium-ion Thruster | -6/Factory | Scanalyzed Imp. Remote Datajack | -6/Factory | Hacked Arc Thrower | -6/Zion | Free Battle Rifle | -6/Zion | Free Barrage Gun | -6/Zion | Free Slug Cannon | -6/Zion | Free Centrium Light Armor Plating | -5/Factory | Scanalyzed Imp. Weapon Shielding | -5/Factory | Scanalyzed Lgt. Antimatter Reactor | -5/Factory | Scanalyzed Adv. Cooling System | -5/Factory | Scanalyzed Assault Drone Bay | -5/Zhirov | Free Exp. Heat Sink | -5/Zhirov | Free Exp. Optical Array | -5/Zhirov | Free Imp. Arc Thrower | -5/Zhirov | Free Biometal Heavy Treads | -4/Factory | Scanalyzed Adv. Power Amplifier | -4/Factory | Scanalyzed Robot Schematics ------------------ S-27 Virus | -7/Data Miner | Free G-50 Soldier | -7/Data Miner | Free G-67 Veteran | -7/Data Miner | Free L-41 Fighter | -7/Data Miner | Free H-66 Slayer | -7/Data Miner | Free P-70 Sage | -7/Data Miner | Free I-36 Angel | -7/Data Miner | Free I-47 Archangel | -7/Data Miner | Free Fabricated ------------ Exp. Terrain Scanner | x1 | -6/Factory Exp. Cesium-ion Thruster | x1 | -6/Factory P-70 Sage | x2 | -5/Factory H-66 Slayer | x2 | -5/Factory H-66 Slayer | x2 | -5/Factory Alien Tech Used ----------------- Core Expander Integrated Dissipator Achievements -------------- None Challenges ------------ None Game ------ Seed DefenseFireBlaster Manual? 0 Play Time 09:26:24 Cumulative 223.7 hours Start 2020.11.16 @ 01:15:29 End 2020.11.17 @ 05:39:13 Sessions 5 Manual Loads 0 Difficulty Rogue Special Mode Halloween2020/ForbiddenLore Game No. 76 Rogue 76 Adventurer 0 Explorer 0 Win Type - Total 2 Types 1/0/1/0/0/0/0/0/0 Lore% 66 Gallery% 78 Achievement% 67 Wizard Run 0 Options --------- ASCII 1 Keyboard 1 Movement Numpad Keybinds 0 Fullscreen 1 Font 16/SmallcapsGlow Map View 75x55 Tactical HUD 1 Map Filters NONE Filters NONE Steam 1 RUN: aa77881a-076d-443d-8269-4d736fe147e2